[Event "Titled Tuesday Blitz May 2 Late 2023"]
[White "Hansen, Eric"]
[Black "Marek, Matyas"]
[WhiteFideId "2606771"]
[BlackFideId "335398"]
[WhiteElo "2561"]
[BlackElo "2279"]
[Result "1-0"]
[Round "02"]
[TimeControl "180+2"]
[Date "2023.05.02"]
[WhiteClock "0:00:02"]
[BlackClock "0:00:08"]

1. b3 {[%clk 0:02:57]}  Nf6 {[%clk 0:02:58]} 2. Bb2 {[%clk 0:02:58]}  g6 {[%clk 0:02:59]} 3. g3 {[%clk 0:02:58]}  Bg7 {[%clk 0:02:59]} 4. Bg2 {[%clk 0:02:59]}  O-O {[%clk 0:03:00]} 5. e3 {[%clk 0:03:00]}  d6 {[%clk 0:03:01]} 6. d3 {[%clk 0:03:00]}  e5 {[%clk 0:03:01]} 7. Ne2 {[%clk 0:03:00]}  c6 {[%clk 0:02:52]} 8. Nd2 {[%clk 0:03:00]}  Nbd7 {[%clk 0:02:52]} 9. O-O {[%clk 0:03:00]}  d5 {[%clk 0:02:53]} 10. b4 {[%clk 0:03:00]}  Re8 {[%clk 0:02:50]} 11. c4 {[%clk 0:02:55]}  Nb6 {[%clk 0:02:42]} 12. Qc2 {[%clk 0:02:46]}  Bg4 {[%clk 0:02:40]} 13. Rae1 {[%clk 0:02:14]}  Qd7 {[%clk 0:02:36]} 14. Nb3 {[%clk 0:02:14]}  Bh3 {[%clk 0:02:27]} 15. Nc5 {[%clk 0:02:14]}  Qc8 {[%clk 0:02:28]} 16. a4 {[%clk 0:01:50]}  Bxg2 {[%clk 0:02:20]} 17. Kxg2 {[%clk 0:01:50]}  Nbd7 {[%clk 0:02:20]} 18. Nb3 {[%clk 0:01:49]}  Nf8 {[%clk 0:02:12]} 19. h3 {[%clk 0:01:46]}  h5 {[%clk 0:02:02]} 20. Rc1 {[%clk 0:01:40]}  N8h7 {[%clk 0:01:58]} 21. cxd5 {[%clk 0:01:30]}  Nxd5 {[%clk 0:01:59]} 22. b5 {[%clk 0:01:30]}  Ng5 {[%clk 0:01:57]} 23. Ng1 {[%clk 0:01:30]}  cxb5 {[%clk 0:01:40]} 24. axb5 {[%clk 0:01:08]}  Qd7 {[%clk 0:01:35]} 25. Qc4 {[%clk 0:00:48]}  Nb6 {[%clk 0:01:22]} 26. Qh4 {[%clk 0:00:48]}  Ne6 {[%clk 0:01:20]} 27. Qb4 {[%clk 0:00:29]}  Nd5 {[%clk 0:01:09]} 28. Qa5 {[%clk 0:00:23]}  b6 {[%clk 0:01:00]} 29. Qa4 {[%clk 0:00:22]}  Ndc7 {[%clk 0:00:58]} 30. Nf3 {[%clk 0:00:18]}  Qxd3 {[%clk 0:00:44]} 31. Bxe5 {[%clk 0:00:09]}  Bxe5 {[%clk 0:00:37]} 32. Nxe5 {[%clk 0:00:08]}  Qd5+ {[%clk 0:00:37]} 33. Nf3 {[%clk 0:00:08]}  Qxb5 {[%clk 0:00:29]} 34. Qa3 {[%clk 0:00:07]}  a5 {[%clk 0:00:20]} 35. Rfd1 {[%clk 0:00:06]}  Rad8 {[%clk 0:00:16]} 36. Nbd4 {[%clk 0:00:06]}  Nxd4 {[%clk 0:00:15]} 37. Nxd4 {[%clk 0:00:06]}  Qd5+ {[%clk 0:00:16]} 38. Nf3 {[%clk 0:00:03]}  Qb7 {[%clk 0:00:14]} 39. e4 {[%clk 0:00:02]}  Ne6 {[%clk 0:00:13]} 40. Qe3 {[%clk 0:00:01]}  Rxd1 {[%clk 0:00:13]} 41. Rxd1 {[%clk 0:00:01]}  b5 {[%clk 0:00:13]} 42. Kg1 {[%clk 0:00:01]}  b4 {[%clk 0:00:13]} 43. Nd4 {[%clk 0:00:01]}  Nxd4 {[%clk 0:00:13]} 44. Rxd4 {[%clk 0:00:02]}  b3 {[%clk 0:00:13]} 45. Qc1 {[%clk 0:00:02]}  b2 {[%clk 0:00:13]} 46. Qb1 {[%clk 0:00:03]}  Rb8 {[%clk 0:00:14]} 47. e5 {[%clk 0:00:03]}  Qb5 {[%clk 0:00:14]} 48. e6 {[%clk 0:00:03]}  Qf5 {[%clk 0:00:13]} 49. exf7+ {[%clk 0:00:04]}  Kxf7 {[%clk 0:00:13]} 50. Qa2+ {[%clk 0:00:04]}  Qe6 {[%clk 0:00:11]} 51. Rf4+ {[%clk 0:00:04]}  Ke7 {[%clk 0:00:11]} 52. Qa3+ {[%clk 0:00:04]}  Qd6 {[%clk 0:00:06]} 53. Re4+ {[%clk 0:00:03]}  Kd7 {[%clk 0:00:07]} 54. Qa4+ {[%clk 0:00:03]}  Qc6 {[%clk 0:00:07]} 55. Qd4+ {[%clk 0:00:03]}  Qd6 {[%clk 0:00:07]} 56. Qa7+ {[%clk 0:00:03]}  Kc6 {[%clk 0:00:08]} 57. Qa6+ {[%clk 0:00:03]}  Kd7 {[%clk 0:00:08]} 58. Qa7+ {[%clk 0:00:04]}  Kc6 {[%clk 0:00:08]} 59. Rc4+ {[%clk 0:00:02]}  Kd5 {[%clk 0:00:09]} 60. Rd4+ {[%clk 0:00:02]}  Ke5 {[%clk 0:00:09]} 61. f4+ {[%clk 0:00:02]}  Kf5 {[%clk 0:00:09]} 62. Qf7+ {[%clk 0:00:01]}  Qf6 {[%clk 0:00:09]} 63. Qd5+ {[%clk 0:00:01]}  Qe5 {[%clk 0:00:08]} 64. Qxe5# {[%clk 0:00:02]} 1-0


[Site "https://www.chess.com"]

[Event "Titled Tuesday Blitz May 2 Late 2023"]
[White "Jovic, Stanoje"]
[Black "Baskakov, Egor"]
[WhiteFideId "905020"]
[BlackFideId "24197866"]
[WhiteElo "2236"]
[BlackElo "2212"]
[Result "0-1"]
[Round "02"]
[TimeControl "180+2"]
[Date "2023.05.02"]
[WhiteClock "0:00:10"]
[BlackClock "0:00:57"]

1. c4 {[%clk 0:03:00]}  Nf6 {[%clk 0:02:59]} 2. g3 {[%clk 0:03:01]}  e6 {[%clk 0:03:00]} 3. Bg2 {[%clk 0:03:00]}  d5 {[%clk 0:03:01]} 4. Nf3 {[%clk 0:03:01]}  Be7 {[%clk 0:03:01]} 5. O-O {[%clk 0:03:01]}  O-O {[%clk 0:03:02]} 6. b3 {[%clk 0:03:01]}  Ne4 {[%clk 0:03:03]} 7. Bb2 {[%clk 0:02:59]}  Bf6 {[%clk 0:03:03]} 8. Qc1 {[%clk 0:02:59]}  c5 {[%clk 0:03:02]} 9. d3 {[%clk 0:02:57]}  Bxb2 {[%clk 0:03:01]} 10. Qxb2 {[%clk 0:02:57]}  Nf6 {[%clk 0:03:02]} 11. cxd5 {[%clk 0:02:55]}  exd5 {[%clk 0:03:01]} 12. Nbd2 {[%clk 0:02:54]}  Nc6 {[%clk 0:03:00]} 13. Rac1 {[%clk 0:02:54]}  b6 {[%clk 0:03:00]} 14. a3 {[%clk 0:02:53]}  a5 {[%clk 0:02:58]} 15. d4 {[%clk 0:02:51]}  Nxd4 {[%clk 0:02:57]} 16. Nxd4 {[%clk 0:02:50]}  cxd4 {[%clk 0:02:58]} 17. Qxd4 {[%clk 0:02:49]}  Re8 {[%clk 0:02:53]} 18. e3 {[%clk 0:02:47]}  Bb7 {[%clk 0:02:52]} 19. Rc2 {[%clk 0:02:40]}  Ne4 {[%clk 0:02:45]} 20. Rfc1 {[%clk 0:02:30]}  Nc5 {[%clk 0:02:35]} 21. b4 {[%clk 0:02:16]}  Ne6 {[%clk 0:02:35]} 22. Qg4 {[%clk 0:02:10]}  Ba6 {[%clk 0:02:24]} 23. h4 {[%clk 0:01:53]}  Bd3 {[%clk 0:02:17]} 24. Rc3 {[%clk 0:01:52]}  f5 {[%clk 0:02:03]} 25. Qd1 {[%clk 0:01:45]}  Be4 {[%clk 0:02:02]} 26. f3 {[%clk 0:01:41]}  d4 {[%clk 0:02:02]} 27. exd4 {[%clk 0:01:39]}  Qxd4+ {[%clk 0:01:59]} 28. Kh2 {[%clk 0:01:35]}  axb4 {[%clk 0:01:58]} 29. axb4 {[%clk 0:01:30]}  Bb7 {[%clk 0:01:55]} 30. Rc4 {[%clk 0:01:26]}  Qf6 {[%clk 0:01:39]} 31. f4 {[%clk 0:01:11]}  Bxg2 {[%clk 0:01:34]} 32. Kxg2 {[%clk 0:01:11]}  Rad8 {[%clk 0:01:29]} 33. Qc2 {[%clk 0:00:45]}  Nd4 {[%clk 0:01:25]} 34. Qa2 {[%clk 0:00:44]}  Re2+ {[%clk 0:01:22]} 35. Kf1 {[%clk 0:00:36]}  Qe6 {[%clk 0:01:06]} 36. Rxd4 {[%clk 0:00:20]}  Rxd4 {[%clk 0:01:04]} 37. Qa8+ {[%clk 0:00:20]}  Kf7 {[%clk 0:00:59]} 38. Rc7+ {[%clk 0:00:19]}  Kg6 {[%clk 0:00:56]} 39. Rc6 {[%clk 0:00:18]}  Re1+ {[%clk 0:00:56]} 40. Kf2 {[%clk 0:00:10]}  Rxd2+ {[%clk 0:00:57]} 0-1


[Site "https://www.chess.com"]

[Event "Titled Tuesday Blitz May 2 Late 2023"]
[White "Danielyan, Vahe"]
[Black "Remizov, Yaroslav"]
[WhiteFideId "13304828"]
[BlackFideId "34134015"]
[WhiteElo "2423"]
[BlackElo "2412"]
[Result "0-1"]
[Round "02"]
[TimeControl "180+2"]
[Date "2023.05.02"]
[WhiteClock "0:00:07"]
[BlackClock "0:00:21"]

1. e4 {[%clk 0:03:00]}  Nf6 {[%clk 0:03:00]} 2. e5 {[%clk 0:03:00]}  Nd5 {[%clk 0:02:58]} 3. c4 {[%clk 0:03:00]}  Nb6 {[%clk 0:02:58]} 4. d4 {[%clk 0:03:01]}  d6 {[%clk 0:02:58]} 5. f4 {[%clk 0:03:01]}  Bf5 {[%clk 0:02:54]} 6. Nc3 {[%clk 0:03:01]}  dxe5 {[%clk 0:02:52]} 7. fxe5 {[%clk 0:03:00]}  e6 {[%clk 0:02:52]} 8. Be3 {[%clk 0:03:00]}  Nc6 {[%clk 0:02:50]} 9. Be2 {[%clk 0:02:58]}  f6 {[%clk 0:02:19]} 10. exf6 {[%clk 0:02:55]}  Qxf6 {[%clk 0:02:10]} 11. Nf3 {[%clk 0:02:55]}  h6 {[%clk 0:01:58]} 12. O-O {[%clk 0:02:54]}  O-O-O {[%clk 0:01:56]} 13. a4 {[%clk 0:01:53]}  Bb4 {[%clk 0:01:50]} 14. a5 {[%clk 0:01:50]}  Nxa5 {[%clk 0:01:42]} 15. Nb5 {[%clk 0:01:45]}  a6 {[%clk 0:01:37]} 16. c5 {[%clk 0:01:44]}  Nd5 {[%clk 0:01:34]} 17. Bd2 {[%clk 0:01:42]}  Bxd2 {[%clk 0:01:28]} 18. Nxd2 {[%clk 0:01:38]}  Nc6 {[%clk 0:01:08]} 19. Nf3 {[%clk 0:01:02]}  Ne3 {[%clk 0:01:05]} 20. Qb3 {[%clk 0:00:56]}  Nxf1 {[%clk 0:01:01]} 21. Bxf1 {[%clk 0:00:56]}  axb5 {[%clk 0:00:44]} 22. Bxb5 {[%clk 0:00:55]}  Nb8 {[%clk 0:00:45]} 23. Ra8 {[%clk 0:00:30]}  Be4 {[%clk 0:00:26]} 24. c6 {[%clk 0:00:25]}  Bxf3 {[%clk 0:00:23]} 25. cxb7+ {[%clk 0:00:19]}  Bxb7 {[%clk 0:00:23]} 26. Ba6 {[%clk 0:00:07]}  Qxd4+ {[%clk 0:00:21]} 0-1


[Site "https://www.chess.com"]

[Event "Titled Tuesday Blitz May 2 Late 2023"]
[White "Indjic, Aleksandar"]
[Black "Rostomyan, Mikayel"]
[WhiteFideId "911925"]
[BlackFideId "13313754"]
[WhiteElo "2614"]
[BlackElo "2061"]
[Result "1-0"]
[Round "02"]
[TimeControl "180+2"]
[Date "2023.05.02"]
[WhiteClock "0:01:17"]
[BlackClock "0:00:07"]

1. d4 {[%clk 0:03:00]}  Nf6 {[%clk 0:02:59]} 2. Nf3 {[%clk 0:03:00]}  c5 {[%clk 0:02:58]} 3. d5 {[%clk 0:02:59]}  b5 {[%clk 0:02:58]} 4. c3 {[%clk 0:02:59]}  Bb7 {[%clk 0:02:54]} 5. e4 {[%clk 0:02:59]}  e6 {[%clk 0:02:46]} 6. dxe6 {[%clk 0:02:48]}  fxe6 {[%clk 0:02:44]} 7. e5 {[%clk 0:02:48]}  Nd5 {[%clk 0:02:40]} 8. Bxb5 {[%clk 0:02:48]}  Be7 {[%clk 0:02:39]} 9. O-O {[%clk 0:02:46]}  O-O {[%clk 0:02:38]} 10. Re1 {[%clk 0:02:42]}  Nf4 {[%clk 0:02:33]} 11. Bxf4 {[%clk 0:02:40]}  Rxf4 {[%clk 0:02:32]} 12. Nbd2 {[%clk 0:02:40]}  Nc6 {[%clk 0:02:26]} 13. Bd3 {[%clk 0:02:37]}  Qc7 {[%clk 0:02:22]} 14. Qe2 {[%clk 0:02:33]}  Raf8 {[%clk 0:02:21]} 15. Be4 {[%clk 0:02:32]}  g6 {[%clk 0:02:05]} 16. Rf1 {[%clk 0:02:16]}  Qb6 {[%clk 0:01:54]} 17. Nc4 {[%clk 0:02:14]}  Qc7 {[%clk 0:01:54]} 18. Ncd2 {[%clk 0:01:51]}  Qb6 {[%clk 0:01:52]} 19. Rab1 {[%clk 0:01:49]}  Ba6 {[%clk 0:01:51]} 20. c4 {[%clk 0:01:45]}  Qc7 {[%clk 0:01:39]} 21. Bd3 {[%clk 0:01:41]}  Bb7 {[%clk 0:01:38]} 22. Rbe1 {[%clk 0:01:38]}  a5 {[%clk 0:01:16]} 23. Be4 {[%clk 0:01:37]}  a4 {[%clk 0:01:10]} 24. Qe3 {[%clk 0:01:36]}  Nxe5 {[%clk 0:00:51]} 25. Nxe5 {[%clk 0:01:23]}  Bxe4 {[%clk 0:00:48]} 26. g3 {[%clk 0:01:20]}  Qxe5 {[%clk 0:00:14]} 27. gxf4 {[%clk 0:01:18]}  Rxf4 {[%clk 0:00:12]} 28. Nxe4 {[%clk 0:01:17]}  Rg4+ {[%clk 0:00:11]} 29. Ng3 {[%clk 0:01:17]}  Qxb2 {[%clk 0:00:08]} 30. Qe2 {[%clk 0:01:17]}  Qd4 {[%clk 0:00:07]} 31. Rd1 {[%clk 0:01:17]} 1-0


[Site "https://www.chess.com"]

[Event "Titled Tuesday Blitz May 2 Late 2023"]
[White "Rodshtein, Maxim"]
[Black "Prem, Pranav"]
[WhiteFideId "2806851"]
[BlackFideId "30901057"]
[WhiteElo "2555"]
[BlackElo "1970"]
[Result "1/2-1/2"]
[Round "02"]
[TimeControl "180+2"]
[Date "2023.05.02"]
[WhiteClock "0:00:06"]
[BlackClock "0:00:06"]

1. e4 {[%clk 0:03:00]}  e6 {[%clk 0:02:48]} 2. d4 {[%clk 0:02:56]}  d5 {[%clk 0:02:48]} 3. Nc3 {[%clk 0:02:56]}  Nf6 {[%clk 0:02:48]} 4. e5 {[%clk 0:02:56]}  Nfd7 {[%clk 0:02:48]} 5. f4 {[%clk 0:02:57]}  c5 {[%clk 0:02:48]} 6. Nf3 {[%clk 0:02:57]}  Nc6 {[%clk 0:02:47]} 7. Be3 {[%clk 0:02:58]}  a6 {[%clk 0:02:48]} 8. a3 {[%clk 0:02:54]}  b5 {[%clk 0:02:47]} 9. dxc5 {[%clk 0:02:52]}  Bxc5 {[%clk 0:02:47]} 10. Bxc5 {[%clk 0:02:45]}  Nxc5 {[%clk 0:02:47]} 11. b4 {[%clk 0:02:39]}  Nd7 {[%clk 0:02:43]} 12. Bd3 {[%clk 0:02:38]}  f6 {[%clk 0:02:39]} 13. exf6 {[%clk 0:02:29]}  Nxf6 {[%clk 0:02:39]} 14. O-O {[%clk 0:02:10]}  O-O {[%clk 0:02:38]} 15. Ne5 {[%clk 0:01:56]}  Qc7 {[%clk 0:02:06]} 16. Nxc6 {[%clk 0:01:38]}  Qxc6 {[%clk 0:02:07]} 17. Qd2 {[%clk 0:01:29]}  Bb7 {[%clk 0:01:51]} 18. Rae1 {[%clk 0:01:22]}  Rac8 {[%clk 0:01:32]} 19. Nd1 {[%clk 0:01:06]}  d4 {[%clk 0:01:18]} 20. Qe2 {[%clk 0:00:36]}  Rce8 {[%clk 0:01:05]} 21. Rf3 {[%clk 0:00:30]}  h6 {[%clk 0:00:48]} 22. Nf2 {[%clk 0:00:26]}  Qc7 {[%clk 0:00:41]} 23. Ne4 {[%clk 0:00:26]}  Nd5 {[%clk 0:00:37]} 24. g3 {[%clk 0:00:22]}  Ne3 {[%clk 0:00:31]} 25. Rxe3 {[%clk 0:00:16]}  dxe3 {[%clk 0:00:32]} 26. Qxe3 {[%clk 0:00:15]}  Qc6 {[%clk 0:00:32]} 27. Qc5 {[%clk 0:00:13]}  Qd5 {[%clk 0:00:30]} 28. Re2 {[%clk 0:00:08]}  Ba8 {[%clk 0:00:20]} 29. Qxd5 {[%clk 0:00:07]}  exd5 {[%clk 0:00:21]} 30. Nc5 {[%clk 0:00:07]}  Rxe2 {[%clk 0:00:20]} 31. Bxe2 {[%clk 0:00:08]}  Rf6 {[%clk 0:00:20]} 32. Bf3 {[%clk 0:00:07]}  Kf8 {[%clk 0:00:20]} 33. Kf2 {[%clk 0:00:07]}  Ke7 {[%clk 0:00:20]} 34. Ke3 {[%clk 0:00:07]}  Kd6 {[%clk 0:00:19]} 35. Kd4 {[%clk 0:00:07]}  Bc6 {[%clk 0:00:18]} 36. Nxa6 {[%clk 0:00:07]}  Re6 {[%clk 0:00:19]} 37. Nc5 {[%clk 0:00:07]}  Re1 {[%clk 0:00:19]} 38. Nb3 {[%clk 0:00:05]}  Rf1 {[%clk 0:00:20]} 39. Be2 {[%clk 0:00:04]}  Rf2 {[%clk 0:00:20]} 40. Bd3 {[%clk 0:00:04]}  Rxh2 {[%clk 0:00:21]} 41. Nc5 {[%clk 0:00:04]}  Rg2 {[%clk 0:00:20]} 42. a4 {[%clk 0:00:02]}  bxa4 {[%clk 0:00:20]} 43. b5 {[%clk 0:00:03]}  Ba8 {[%clk 0:00:18]} 44. Nxa4 {[%clk 0:00:03]}  Rxg3 {[%clk 0:00:17]} 45. Nb6 {[%clk 0:00:04]}  Bb7 {[%clk 0:00:18]} 46. Na4 {[%clk 0:00:03]}  Rg4 {[%clk 0:00:18]} 47. Ke3 {[%clk 0:00:04]}  g5 {[%clk 0:00:18]} 48. Nb6 {[%clk 0:00:02]}  Rxf4 {[%clk 0:00:17]} 49. c4 {[%clk 0:00:01]}  dxc4 {[%clk 0:00:17]} 50. Nxc4+ {[%clk 0:00:02]}  Kc5 {[%clk 0:00:16]} 51. Ne5 {[%clk 0:00:03]}  Rh4 {[%clk 0:00:15]} 52. Nd7+ {[%clk 0:00:02]}  Kd6 {[%clk 0:00:16]} 53. Nf6 {[%clk 0:00:02]}  Rh3+ {[%clk 0:00:15]} 54. Kd4 {[%clk 0:00:02]}  Rh4+ {[%clk 0:00:15]} 55. Ke3 {[%clk 0:00:01]}  Kc5 {[%clk 0:00:12]} 56. Nd7+ {[%clk 0:00:01]}  Kb4 {[%clk 0:00:11]} 57. Ne5 {[%clk 0:00:02]}  Rh3+ {[%clk 0:00:11]} 58. Kd4 {[%clk 0:00:02]}  h5 {[%clk 0:00:07]} 59. Nc6+ {[%clk 0:00:02]}  Ka4 {[%clk 0:00:05]} 60. Nd8 {[%clk 0:00:02]}  g4 {[%clk 0:00:04]} 61. Nxb7 {[%clk 0:00:02]}  g3 {[%clk 0:00:04]} 62. Nc5+ {[%clk 0:00:02]}  Ka5 {[%clk 0:00:04]} 63. Be4 {[%clk 0:00:03]}  Rh2 {[%clk 0:00:04]} 64. Ke3 {[%clk 0:00:03]}  Rb2 {[%clk 0:00:02]} 65. Nd3 {[%clk 0:00:03]}  Rxb5 {[%clk 0:00:02]} 66. Nf4 {[%clk 0:00:03]}  Rb3+ {[%clk 0:00:03]} 67. Ke2 {[%clk 0:00:04]}  Rb4 {[%clk 0:00:03]} 68. Kf3 {[%clk 0:00:04]}  h4 {[%clk 0:00:03]} 69. Nh3 {[%clk 0:00:04]}  Rxe4 {[%clk 0:00:02]} 70. Kxe4 {[%clk 0:00:04]}  Kb5 {[%clk 0:00:03]} 71. Kf3 {[%clk 0:00:05]}  Kc5 {[%clk 0:00:04]} 72. Kg4 {[%clk 0:00:05]}  Kd5 {[%clk 0:00:05]} 73. Kxh4 {[%clk 0:00:06]}  Ke5 {[%clk 0:00:06]} 74. Kxg3 {[%clk 0:00:06]} 1/2-1/2


[Site "https://www.chess.com"]

[Event "Titled Tuesday Blitz May 2 Late 2023"]
[White "Bakalchuk, Johnatan"]
[Black "Mortazavi, Ali"]
[WhiteFideId "2810301"]
[BlackFideId "401323"]
[WhiteElo "2450"]
[BlackElo "2339"]
[Result "1-0"]
[Round "02"]
[TimeControl "180+2"]
[Date "2023.05.02"]
[WhiteClock "0:00:42"]
[BlackClock "0:00:05"]

1. d4 {[%clk 0:03:00]}  Nf6 {[%clk 0:02:59]} 2. Nc3 {[%clk 0:03:00]}  g6 {[%clk 0:03:00]} 3. e4 {[%clk 0:03:00]}  d6 {[%clk 0:03:01]} 4. Bf4 {[%clk 0:03:00]}  Nc6 {[%clk 0:02:57]} 5. Qd2 {[%clk 0:02:59]}  Bg7 {[%clk 0:02:47]} 6. O-O-O {[%clk 0:02:59]}  O-O {[%clk 0:02:41]} 7. f3 {[%clk 0:02:59]}  Nh5 {[%clk 0:02:21]} 8. Bh6 {[%clk 0:02:53]}  e5 {[%clk 0:02:20]} 9. d5 {[%clk 0:02:46]}  Nd4 {[%clk 0:02:20]} 10. Nge2 {[%clk 0:02:45]}  Nxe2+ {[%clk 0:02:06]} 11. Nxe2 {[%clk 0:02:34]}  Bxh6 {[%clk 0:01:57]} 12. Qxh6 {[%clk 0:02:33]}  Qf6 {[%clk 0:01:57]} 13. Qe3 {[%clk 0:02:26]}  c5 {[%clk 0:01:47]} 14. dxc6 {[%clk 0:02:17]}  bxc6 {[%clk 0:01:47]} 15. g4 {[%clk 0:02:18]}  Nf4 {[%clk 0:01:45]} 16. Nxf4 {[%clk 0:02:18]}  exf4 {[%clk 0:01:46]} 17. Qd4 {[%clk 0:02:19]}  Qd8 {[%clk 0:01:09]} 18. Qxd6 {[%clk 0:02:15]}  Qb6 {[%clk 0:01:10]} 19. Bc4 {[%clk 0:02:11]}  Qe3+ {[%clk 0:01:04]} 20. Kb1 {[%clk 0:02:09]}  Qxf3 {[%clk 0:01:04]} 21. Rhf1 {[%clk 0:02:06]}  Qxg4 {[%clk 0:00:59]} 22. Rxf4 {[%clk 0:02:06]}  Qh5 {[%clk 0:00:55]} 23. Rxf7 {[%clk 0:01:36]}  Rxf7 {[%clk 0:00:48]} 24. Bxf7+ {[%clk 0:01:29]}  Kg7 {[%clk 0:00:26]} 25. Bb3 {[%clk 0:01:27]}  Bg4 {[%clk 0:00:26]} 26. Rf1 {[%clk 0:01:21]}  Qg5 {[%clk 0:00:20]} 27. a4 {[%clk 0:01:15]}  Kh6 {[%clk 0:00:17]} 28. Rf7 {[%clk 0:01:08]}  Rd8 {[%clk 0:00:10]} 29. Qc7 {[%clk 0:01:04]}  Rd1+ {[%clk 0:00:06]} 30. Ka2 {[%clk 0:01:05]}  Qc1 {[%clk 0:00:07]} 31. Rxh7+ {[%clk 0:01:04]}  Kg5 {[%clk 0:00:07]} 32. h4+ {[%clk 0:00:42]}  Kf6 {[%clk 0:00:05]} 33. Qe7# {[%clk 0:00:42]} 1-0


[Site "https://www.chess.com"]

[Event "Titled Tuesday Blitz May 2 Late 2023"]
[White "Vovk, Orest"]
[Black "Perez Ponsa, Federico"]
[WhiteFideId "14113490"]
[BlackFideId "117927"]
[WhiteElo "2215"]
[BlackElo "2590"]
[Result "0-1"]
[Round "02"]
[TimeControl "180+2"]
[Date "2023.05.02"]
[WhiteClock "0:00:01"]
[BlackClock "0:00:08"]

1. c4 {[%clk 0:02:55]}  e6 {[%clk 0:02:59]} 2. Nc3 {[%clk 0:02:53]}  d5 {[%clk 0:02:59]} 3. Nf3 {[%clk 0:02:49]}  d4 {[%clk 0:02:57]} 4. Ne4 {[%clk 0:02:48]}  Nc6 {[%clk 0:02:49]} 5. g4 {[%clk 0:02:43]}  f5 {[%clk 0:02:43]} 6. gxf5 {[%clk 0:02:40]}  exf5 {[%clk 0:02:41]} 7. Ng3 {[%clk 0:02:40]}  g5 {[%clk 0:02:34]} 8. d3 {[%clk 0:02:26]}  g4 {[%clk 0:02:30]} 9. Nd2 {[%clk 0:02:25]}  h5 {[%clk 0:02:25]} 10. h3 {[%clk 0:02:08]}  f4 {[%clk 0:02:02]} 11. Nge4 {[%clk 0:02:04]}  g3 {[%clk 0:02:03]} 12. fxg3 {[%clk 0:01:58]}  fxg3 {[%clk 0:02:00]} 13. Bg2 {[%clk 0:01:58]}  Nh6 {[%clk 0:01:55]} 14. O-O {[%clk 0:01:45]}  Nf5 {[%clk 0:01:55]} 15. Nf3 {[%clk 0:01:40]}  Bh6 {[%clk 0:01:05]} 16. Bxh6 {[%clk 0:00:51]}  Rxh6 {[%clk 0:00:58]} 17. Nfg5 {[%clk 0:00:48]}  Ne3 {[%clk 0:00:52]} 18. Qb3 {[%clk 0:00:31]}  Nxf1 {[%clk 0:00:12]} 19. c5 {[%clk 0:00:29]}  Qe7 {[%clk 0:00:03]} 20. Rxf1 {[%clk 0:00:26]}  Nd8 {[%clk 0:00:02]} 21. Qg8+ {[%clk 0:00:22]}  Kd7 {[%clk 0:00:02]} 22. Qd5+ {[%clk 0:00:16]}  Ke8 {[%clk 0:00:03]} 23. Qg8+ {[%clk 0:00:09]}  Kd7 {[%clk 0:00:03]} 24. Rf8 {[%clk 0:00:04]}  c6 {[%clk 0:00:03]} 25. Rf5 {[%clk 0:00:02]}  Kc7 {[%clk 0:00:03]} 26. Rf8 {[%clk 0:00:03]}  Be6 {[%clk 0:00:04]} 27. Rxd8 {[%clk 0:00:01]}  Bxg8 {[%clk 0:00:04]} 28. Rxa8 {[%clk 0:00:01]}  Bd5 {[%clk 0:00:05]} 29. Rxa7 {[%clk 0:00:02]}  Bxe4 {[%clk 0:00:05]} 30. Nxe4 {[%clk 0:00:02]}  Re6 {[%clk 0:00:05]} 31. Ra8 {[%clk 0:00:02]}  Rxe4 {[%clk 0:00:06]} 32. Bxe4 {[%clk 0:00:02]}  Qf6 {[%clk 0:00:06]} 33. Bf3 {[%clk 0:00:01]}  Qe5 {[%clk 0:00:07]} 34. Rg8 {[%clk 0:00:01]}  Qe3+ {[%clk 0:00:07]} 35. Kh1 {[%clk 0:00:01]}  Qf2 {[%clk 0:00:08]} 36. Bg2 {[%clk 0:00:01]}  Qe1+ {[%clk 0:00:08]} 0-1


[Site "https://www.chess.com"]